[Event "CZE-ch 2020"]
[Site "Pilsen"]
[Date "2020.08.27"]
[Round "5.20"]
[White "Klement, Lukas"]
[Black "Vybiral, Zdenek"]
[Result "1-0"]
[ECO "B59"]
[WhiteElo "2260"]
[BlackElo "2221"]
[Annotator "ChessBase"]
[PlyCount "91"]
[EventDate "2020.08.23"]
[EventType "swiss"]
[EventCountry "CZE"]
[SourceTitle "playchess.com"]
[Source "ChessBase"]
[SourceQuality "1"]
[TimeControl "40/5400+30:1800+30"]

1. e4 {[%emt 0:00:00]} c5 {[%emt 0:00:00]} 2. Nf3 {[%emt 0:00:11]} d6 {[%emt 0:00:00]} 3. d4 {[%emt 0:00:26]} cxd4 {[%emt 0:00:00]} 4. Nxd4 {[%emt 0:00:08]} Nf6 {[%emt 0:00:00]} 5. Nc3 {[%emt 0:00:06]} Nc6 {[%emt 0:00:01]} 6. Be2 {[%emt 0:02:07]} e5 {[%emt 0:00:57]} 7. Nb3 {[%emt 0:02:14]} Be7 {[%emt 0:02:53]} 8. O-O {[%emt 0:17:23]} O-O {[%emt 0:00:14]} 9. Be3 {[%emt 0:03:39]} a5 {[%emt 0:06:21]} 10. a4 {[%emt 0:02:38]} Nb4 {[%emt 0:01:45]} 11. f4 {[%emt 0:08:21]} b6 {[%emt 0:07:12]} 12. Nd2 {[%emt 0:14:47]} exf4 {[%emt 0:33:25]} 13. Rxf4 {[%emt 0:09:49]} d5 {[%emt 0:00:14]} 14. e5 {[%emt 0:11:40]} Nd7 {[%emt 0:03:13]} 15. Nf3 {[%emt 0:04:30]} Nc5 {[%emt 0:01:26]} 16. Nb5 {[%emt 0:04:02]} Ne6 {[%emt 0:14:09]} 17. Rg4 {[%emt 0:00:23]} Nc6 {[%emt 0:00:09]} 18. Rg3 {[%emt 0:01:24]} Bc5 {[%emt 0:07:52]} 19. Bxc5 {[%emt 0:00:37]} bxc5 {[%emt 0:00:02]} 20. c3 {[%emt 0:01:01]} Nf4 {[%emt 0:01:23]} 21. Qd2 {[%emt 0:01:22]} Ng6 {[%emt 0:01:08]} 22. Rd1 {[%emt 0:01:15]} Be6 {[%emt 0:00:10]} 23. Qe3 {[%emt 0:00:26]} Qe7 {[%emt 0:00:22]} 24. Bd3 {[%emt 0:00:46]} Rad8 {[%emt 0:00:40]} 25. Re1 {[%emt 0:03:13]} Rb8 {[%emt 0:07:50]} 26. Rg5 {[%emt 0:01:12]} Rfd8 {[%emt 0:01:35]} 27. h4 {[%emt 0:01:09]} d4 {[%emt 0:01:53]} 28. cxd4 {[%emt 0:00:37]} cxd4 {[%emt 0:00:06]} 29. Nbxd4 {[%emt 0:01:37]} Nxd4 {[%emt 0:00:16]} 30. Nxd4 {[%emt 0:00:05]} Qd7 {[%emt 0:07:08]} 31. Nxe6 {[%emt 0:00:19]} Qxe6 {[%emt 0:00:01]} 32. h5 {[%emt 0:04:29]} Nf8 {[%emt 0:00:45]} 33. Bb5 {[%emt 0:00:56]} Qh6 {[%emt 0:01:59]} 34. Rf5 {[%emt 0:01:01]} Qxe3+ {[%emt 0:00:32]} 35. Rxe3 {[%emt 0:00:01]} Rd1+ {[%emt 0:00:14]} 36. Rf1 {[%emt 0:00:36]} Rd2 {[%emt 0:00:17]} 37. b3 {[%emt 0:00:35]} Ne6 {[%emt 0:00:30]} 38. Bc4 {[%emt 0:00:54]} Rbd8 {[%emt 0:00:15]} 39. Ref3 {[%emt 0:00:30]} Ng5 {[%emt 0:00:58]} 40. Bxf7+ {[%emt 0:01:14]} Nxf7 {[%emt 0:00:18]} 41. Rxf7 {[%emt 0:30:01]} Re2 {[%emt 0:30:09]} 42. Re7 {[%emt 0:01:08]} Rf8 {[%emt 0:00:00]} 43. e6 {[%emt 0:00:00]} Re5 {[%emt 0:00:00]} 44. Rxf8+ {[%emt 0:00:00]} Kxf8 {[%emt 0:00:00]} 45. Rf7+ {[%emt 0:00:00]} Kg8 {[%emt 0:00:00]} 46. Ra7 {[%emt 0:00:00]} 1-0

[Event "CZE-ch 2020"]
[Site "Pilsen"]
[Date "2020.08.27"]
[Round "5.21"]
[White "Gloser, David"]
[Black "Flajsman, Pavel"]
[Result "1-0"]
[ECO "B23"]
[WhiteElo "2248"]
[BlackElo "2184"]
[Annotator "ChessBase"]
[PlyCount "103"]
[EventDate "2020.08.23"]
[EventType "swiss"]
[EventCountry "CZE"]
[SourceTitle "playchess.com"]
[Source "ChessBase"]
[SourceQuality "1"]
[TimeControl "40/5400+30:1800+30"]

1. e4 {[%emt 0:00:00]} c5 {[%emt 0:00:00]} 2. Nc3 {[%emt 0:00:00]} Nc6 {[%emt 0:00:14]} 3. f4 {[%emt 0:00:00]} g6 {[%emt 0:01:08]} 4. Nf3 {[%emt 0:00:00]} Bg7 {[%emt 0:00:03]} 5. Bc4 {[%emt 0:00:09]} e6 {[%emt 0:04:30]} 6. f5 {[%emt 0:00:08]} Nh6 {[%emt 0:07:00]} 7. d3 {[%emt 0:08:40]} gxf5 {[%emt 0:29:58]} 8. Bg5 {[%emt 0:19:43]} Qa5 {[%emt 0:04:37]} 9. Bd2 {[%emt 0:08:41]} O-O {[%emt 0:10:00]} 10. O-O {[%emt 0:02:49]} Nd4 {[%emt 0:09:14]} 11. Nh4 {[%emt 0:05:27]} Ng4 {[%emt 0:10:35]} 12. exf5 {[%emt 0:03:24]} Nf6 {[%emt 0:00:25]} 13. Ne4 {[%emt 0:15:32]} Qd8 {[%emt 0:01:07]} 14. Ng3 {[%emt 0:00:17]} d5 {[%emt 0:00:56]} 15. Bb3 {[%emt 0:00:31]} b5 {[%emt 0:06:57]} 16. c3 {[%emt 0:02:14]} Nxf5 {[%emt 0:01:37]} 17. Nhxf5 {[%emt 0:01:34]} exf5 {[%emt 0:00:03]} 18. Nh5 {[%emt 0:08:21]} Nxh5 {[%emt 0:00:28]} 19. Qxh5 {[%emt 0:00:05]} c4 {[%emt 0:01:56]} 20. Bc2 {[%emt 0:00:36]} Qb6+ {[%emt 0:05:46]} 21. Kh1 {[%emt 0:00:36]} Qg6 {[%emt 0:00:11]} 22. Qf3 {[%emt 0:00:37]} Be6 {[%emt 0:00:54]} 23. d4 {[%emt 0:00:26]} a5 {[%emt 0:00:29]} 24. Rae1 {[%emt 0:02:20]} Ra7 {[%emt 0:00:42]} 25. Qf2 {[%emt 0:00:49]} Kh8 {[%emt 0:02:16]} 26. Re3 {[%emt 0:01:10]} Bf6 {[%emt 0:00:52]} 27. Rg3 {[%emt 0:03:19]} Bh4 {[%emt 0:00:04]} 28. Rxg6 {[%emt 0:00:10]} Bxf2 {[%emt 0:00:01]} 29. Rxe6 {[%emt 0:00:06]} fxe6 {[%emt 0:00:06]} 30. Rxf2 {[%emt 0:00:04]} Rg8 {[%emt 0:00:49]} 31. Rf3 {[%emt 0:04:39]} Rg6 {[%emt 0:01:15]} 32. Bf4 {[%emt 0:01:57]} Kg8 {[%emt 0:00:40]} 33. Bd1 {[%emt 0:00:55]} a4 {[%emt 0:00:20]} 34. Bc1 {[%emt 0:01:03]} Rag7 {[%emt 0:00:32]} 35. Rf2 {[%emt 0:00:55]} Ra7 {[%emt 0:00:26]} 36. g3 {[%emt 0:00:50]} Kf8 {[%emt 0:00:44]} 37. Bh5 {[%emt 0:01:09]} Rf6 {[%emt 0:00:32]} 38. Bg5 {[%emt 0:01:29]} Rg6 {[%emt 0:00:58]} 39. Bxg6 {[%emt 0:00:05]} hxg6 {[%emt 0:00:01]} 40. Bc1 {[%emt 0:01:07]} Kf7 {[%emt 0:00:43]} 41. Re2 {[%emt 0:32:04]} Kf6 {[%emt 0:00:27]} 42. h4 {[%emt 0:00:00]} Rh7 {[%emt 0:00:48]} 43. Kg2 {[%emt 0:00:00]} Rh8 {[%emt 0:00:14]} 44. Bg5+ {[%emt 0:00:00]} Kf7 {[%emt 0:00:01]} 45. a3 {[%emt 0:00:00]} Rh7 {[%emt 0:00:25]} 46. Kf3 {[%emt 0:00:00]} Rh8 {[%emt 0:00:38]} 47. Kf4 {[%emt 0:00:00]} Rb8 {[%emt 0:00:11]} 48. Ke5 {[%emt 0:00:00]} Rb6 {[%emt 0:00:05]} 49. Bf6 {[%emt 0:00:00]} Ra6 {[%emt 0:00:26]} 50. Rh2 {[%emt 0:00:00]} Ra8 {[%emt 0:00:49]} 51. h5 {[%emt 0:00:00]} b4 {[%emt 0:00:47]} 52. h6 {[%emt 0:00:00]} 1-0

[Event "CZE-ch 2020"]
[Site "Pilsen"]
[Date "2020.08.27"]
[Round "5.22"]
[White "Novotny, Michal"]
[Black "Vojta, Jakub"]
[Result "1-0"]
[ECO "B34"]
[WhiteElo "2246"]
[BlackElo "2093"]
[Annotator "ChessBase"]
[PlyCount "87"]
[EventDate "2020.08.23"]
[EventType "swiss"]
[EventCountry "CZE"]
[SourceTitle "playchess.com"]
[Source "ChessBase"]
[SourceQuality "1"]
[TimeControl "40/5400+30:1800+30"]

1. e4 {[%emt 0:01:48]} c5 {[%emt 0:00:00]} 2. Nf3 {[%emt 0:00:08]} Nc6 {[%emt 0:00:00]} 3. d4 {[%emt 0:01:16]} cxd4 {[%emt 0:00:00]} 4. Nxd4 {[%emt 0:00:03]} Nf6 {[%emt 0:00:00]} 5. Nc3 {[%emt 0:00:04]} e5 {[%emt 0:00:00]} 6. Ndb5 {[%emt 0:00:04]} d6 {[%emt 0:00:00]} 7. a4 {[%emt 0:00:03]} Be7 {[%emt 0:03:57]} 8. Bg5 {[%emt 0:02:29]} a6 {[%emt 0:02:47]} 9. Bxf6 {[%emt 0:00:24]} gxf6 {[%emt 0:00:14]} 10. Na3 {[%emt 0:00:07]} f5 {[%emt 0:04:00]} 11. Qh5 {[%emt 0:09:42]} Nd4 {[%emt 0:06:10]} 12. Bc4 {[%emt 0:02:44]} O-O {[%emt 0:01:37]} 13. O-O {[%emt 0:04:51]} f4 {[%emt 0:04:52]} 14. Nd5 {[%emt 0:02:24]} Kh8 {[%emt 0:04:50]} 15. c3 {[%emt 0:07:10]} Ne6 {[%emt 0:02:46]} 16. a5 {[%emt 0:02:46]} Ng7 {[%emt 0:07:21]} 17. Qd1 {[%emt 0:02:21]} f5 {[%emt 0:03:04]} 18. f3 {[%emt 0:02:33]} h5 {[%emt 0:03:55]} 19. Nb6 {[%emt 0:03:14]} Rb8 {[%emt 0:01:16]} 20. Bd5 {[%emt 0:05:10]} Ne6 {[%emt 0:04:20]} 21. Nac4 {[%emt 0:11:29]} Ng5 {[%emt 0:02:46]} 22. Nxc8 {[%emt 0:11:50]} Qxc8 {[%emt 0:00:40]} 23. Qd3 {[%emt 0:00:15]} fxe4 {[%emt 0:03:51]} 24. Bxe4 {[%emt 0:01:23]} Rg8 {[%emt 0:04:21]} 25. Kh1 {[%emt 0:01:02]} Qf8 {[%emt 0:02:44]} 26. Bd5 {[%emt 0:04:01]} Rg7 {[%emt 0:04:32]} 27. Nd2 {[%emt 0:02:12]} h4 {[%emt 0:01:55]} 28. Ne4 {[%emt 0:01:05]} h3 {[%emt 0:01:01]} 29. gxh3 {[%emt 0:02:15]} Qf5 {[%emt 0:03:49]} 30. Rg1 {[%emt 0:05:40]} Nxh3 {[%emt 0:09:58]} 31. Rxg7 {[%emt 0:00:06]} Kxg7 {[%emt 0:00:09]} 32. Qc4 {[%emt 0:04:35]} Qh5 {[%emt 0:02:15]} 33. Rf1 {[%emt 0:00:02]} Qh8 {[%emt 0:10:51]} 34. Be6 {[%emt 0:02:58]} Rd8 {[%emt 0:02:33]} 35. Qc7 {[%emt 0:03:53]} Kf8 {[%emt 0:00:17]} 36. Qxb7 {[%emt 0:00:14]} Qh6 {[%emt 0:00:30]} 37. Qd5 {[%emt 0:00:56]} Qh4 {[%emt 0:01:56]} 38. Bf5 {[%emt 0:03:24]} Qh6 {[%emt 0:00:39]} 39. b4 {[%emt 0:00:35]} Rb8 {[%emt 0:00:59]} 40. c4 {[%emt 0:00:55]} Rxb4 {[%emt 0:01:52]} 41. Qa8+ {[%emt 0:30:33]} Kf7 {[%emt 0:30:46]} 42. Bd7 {[%emt 0:00:00]} Bf8 {[%emt 0:00:00]} 43. Qe8+ {[%emt 0:00:00]} Kg7 {[%emt 0:00:00]} 44. Bxh3 {[%emt 0:00:00]} 1-0

[Event "CZE-ch 2020"]
[Site "Pilsen"]
[Date "2020.08.27"]
[Round "5.23"]
[White "Kawulok, Marek"]
[Black "Brozka, Karel"]
[Result "1/2-1/2"]
[ECO "A05"]
[WhiteElo "2226"]
[BlackElo "1991"]
[Annotator "ChessBase"]
[PlyCount "78"]
[EventDate "2020.08.23"]
[EventType "swiss"]
[EventCountry "CZE"]
[SourceTitle "playchess.com"]
[Source "ChessBase"]
[SourceQuality "1"]
[TimeControl "40/5400+30:1800+30"]

1. Nf3 {[%emt 0:00:00]} Nf6 {[%emt 0:00:00]} 2. g3 {[%emt 0:00:00]} g6 {[%emt 0:00:04]} 3. b3 {[%emt 0:00:11]} Bg7 {[%emt 0:00:28]} 4. Bb2 {[%emt 0:00:06]} d6 {[%emt 0:01:45]} 5. Bg2 {[%emt 0:01:12]} e5 {[%emt 0:02:11]} 6. d3 {[%emt 0:00:13]} Nc6 {[%emt 0:01:25]} 7. O-O {[%emt 0:00:56]} O-O {[%emt 0:00:11]} 8. c4 {[%emt 0:02:02]} h6 {[%emt 0:03:15]} 9. Nc3 {[%emt 0:01:17]} Be6 {[%emt 0:01:14]} 10. Nd2 {[%emt 0:07:53]} Qd7 {[%emt 0:09:19]} 11. Nd5 {[%emt 0:02:00]} Bh3 {[%emt 0:02:08]} 12. f4 {[%emt 0:04:19]} Bxg2 {[%emt 0:02:01]} 13. Kxg2 {[%emt 0:00:09]} Nxd5 {[%emt 0:01:01]} 14. cxd5 {[%emt 0:00:06]} Nb4 {[%emt 0:00:12]} 15. fxe5 {[%emt 0:08:11]} Nxd5 {[%emt 0:01:41]} 16. Nc4 {[%emt 0:05:36]} dxe5 {[%emt 0:09:01]} 17. Qd2 {[%emt 0:05:24]} Nb6 {[%emt 0:07:44]} 18. Qa5 {[%emt 0:09:40]} Nxc4 {[%emt 0:06:54]} 19. bxc4 {[%emt 0:00:07]} b6 {[%emt 0:11:28]} 20. Qb5 {[%emt 0:00:48]} Qe6 {[%emt 0:02:56]} 21. Qd5 {[%emt 0:06:59]} Rfe8 {[%emt 0:04:11]} 22. Qb7 {[%emt 0:06:51]} h5 {[%emt 0:03:30]} 23. Rf2 {[%emt 0:04:30]} Rad8 {[%emt 0:05:29]} 24. Raf1 {[%emt 0:05:30]} Rd7 {[%emt 0:02:01]} 25. Kg1 {[%emt 0:05:46]} a5 {[%emt 0:04:53]} 26. c5 {[%emt 0:03:55]} Qxa2 {[%emt 0:04:21]} 27. e4 {[%emt 0:00:44]} Qe6 {[%emt 0:01:58]} 28. c6 {[%emt 0:01:42]} Rd6 {[%emt 0:03:13]} 29. Rxf7 {[%emt 0:11:21]} Rxc6 {[%emt 0:00:47]} 30. R1f2 {[%emt 0:00:08]} b5 {[%emt 0:03:49]} 31. Qxb5 {[%emt 0:01:45]} Rb6 {[%emt 0:00:33]} 32. Qxa5 {[%emt 0:00:14]} Qxf7 {[%emt 0:01:08]} 33. Rxf7 {[%emt 0:00:10]} Kxf7 {[%emt 0:00:01]} 34. Qd5+ {[%emt 0:00:28]} Rbe6 {[%emt 0:01:07]} 35. Ba3 {[%emt 0:01:40]} c6 {[%emt 0:01:32]} 36. Qd7+ {[%emt 0:00:07]} Kg8 {[%emt 0:00:20]} 37. Kg2 {[%emt 0:00:48]} Bf8 {[%emt 0:01:13]} 38. Bxf8 {[%emt 0:02:10]} Kxf8 {[%emt 0:00:08]} 39. Kh3 {[%emt 0:00:04]} R8e7 {[%emt 0:01:16]} 1/2-1/2

[Event "CZE-ch 2020"]
[Site "Pilsen"]
[Date "2020.08.27"]
[Round "5.24"]
[White "Nemec, Jachym"]
[Black "Jurek, Josef"]
[Result "1-0"]
[ECO "E12"]
[WhiteElo "2150"]
[BlackElo "2234"]
[Annotator "ChessBase"]
[PlyCount "81"]
[EventDate "2020.08.23"]
[EventType "swiss"]
[EventCountry "CZE"]
[SourceTitle "playchess.com"]
[Source "ChessBase"]
[SourceQuality "1"]
[TimeControl "40/5400+30:1800+30"]

1. d4 {[%emt 0:00:00]} Nf6 {[%emt 0:00:06]} 2. Nf3 {[%emt 0:00:00]} e6 {[%emt 0:00:25]} 3. c4 {[%emt 0:00:04]} b6 {[%emt 0:00:44]} 4. a3 {[%emt 0:00:12]} Bb7 {[%emt 0:01:04]} 5. Nc3 {[%emt 0:00:31]} g6 {[%emt 0:00:52]} 6. Bg5 {[%emt 0:03:19]} Bg7 {[%emt 0:01:52]} 7. Qc2 {[%emt 0:05:14]} h6 {[%emt 0:05:11]} 8. Bh4 {[%emt 0:00:53]} d6 {[%emt 0:01:54]} 9. e4 {[%emt 0:03:42]} g5 {[%emt 0:02:04]} 10. Bg3 {[%emt 0:00:48]} Nh5 {[%emt 0:02:04]} 11. O-O-O {[%emt 0:19:15]} Nd7 {[%emt 0:05:34]} 12. Be2 {[%emt 0:01:14]} Qe7 {[%emt 0:06:32]} 13. Ne1 {[%emt 0:14:13]} Nxg3 {[%emt 0:01:33]} 14. hxg3 {[%emt 0:00:10]} O-O-O {[%emt 0:02:28]} 15. Qa4 {[%emt 0:06:11]} Kb8 {[%emt 0:02:28]} 16. Nc2 {[%emt 0:02:36]} c5 {[%emt 0:04:15]} 17. e5 {[%emt 0:05:32]} dxe5 {[%emt 0:06:05]} 18. d5 {[%emt 0:00:26]} e4 {[%emt 0:04:59]} 19. d6 {[%emt 0:12:55]} Qf6 {[%emt 0:03:42]} 20. f3 {[%emt 0:00:37]} Qe5 {[%emt 0:12:15]} 21. fxe4 {[%emt 0:03:32]} Qxg3 {[%emt 0:03:40]} 22. Nb5 {[%emt 0:06:44]} a6 {[%emt 0:05:51]} 23. Nc7 {[%emt 0:00:04]} Qe5 {[%emt 0:06:29]} 24. Qb3 {[%emt 0:00:18]} Ka7 {[%emt 0:02:11]} 25. Rh3 {[%emt 0:04:48]} Nb8 {[%emt 0:02:10]} 26. Rhd3 {[%emt 0:00:55]} Nc6 {[%emt 0:01:21]} 27. Bf3 {[%emt 0:00:55]} Rd7 {[%emt 0:02:39]} 28. a4 {[%emt 0:02:42]} Rhd8 {[%emt 0:01:17]} 29. Na3 {[%emt 0:01:14]} Nd4 {[%emt 0:02:07]} 30. Qc3 {[%emt 0:00:37]} Rxd6 {[%emt 0:02:32]} 31. a5 {[%emt 0:00:12]} bxa5 {[%emt 0:02:44]} 32. R1d2 {[%emt 0:01:43]} Rb6 {[%emt 0:01:04]} 33. Qxa5 {[%emt 0:00:55]} Qxc7 {[%emt 0:02:43]} 34. Rxd4 {[%emt 0:00:17]} Rc8 {[%emt 0:01:55]} 35. Rd7 {[%emt 0:00:45]} Bxb2+ {[%emt 0:01:24]} 36. Rxb2 {[%emt 0:00:42]} Qf4+ {[%emt 0:00:46]} 37. Rbd2 {[%emt 0:00:38]} Rb3 {[%emt 0:00:38]} 38. Nb5+ {[%emt 0:00:26]} Kb8 {[%emt 0:00:27]} 39. Rxb7+ {[%emt 0:00:25]} Kxb7 {[%emt 0:00:17]} 40. e5+ {[%emt 0:02:35]} Rxf3 {[%emt 0:00:28]} 41. Nd6+ {[%emt 0:30:11]} 1-0

[Event "CZE-ch 2020"]
[Site "Pilsen"]
[Date "2020.08.27"]
[Round "5.25"]
[White "Riha, Vojtech"]
[Black "Jezek, Jan"]
[Result "1-0"]
[ECO "B06"]
[WhiteElo "2270"]
[BlackElo "2162"]
[Annotator "ChessBase"]
[PlyCount "63"]
[EventDate "2020.08.23"]
[EventType "swiss"]
[EventCountry "CZE"]
[SourceTitle "playchess.com"]
[Source "ChessBase"]
[SourceQuality "1"]
[TimeControl "40/5400+30:1800+30"]

1. e4 {[%emt 0:00:00]} g6 {[%emt 0:00:00]} 2. d4 {[%emt 0:00:02]} Bg7 {[%emt 0:00:00]} 3. Nc3 {[%emt 0:00:24]} d6 {[%emt 0:00:00]} 4. f4 {[%emt 0:00:54]} a6 {[%emt 0:00:07]} 5. Nf3 {[%emt 0:00:53]} b5 {[%emt 0:00:14]} 6. Bd3 {[%emt 0:00:46]} Nd7 {[%emt 0:00:42]} 7. a4 {[%emt 0:00:48]} b4 {[%emt 0:00:58]} 8. Ne2 {[%emt 0:00:07]} e6 {[%emt 0:07:38]} 9. O-O {[%emt 0:02:23]} Ne7 {[%emt 0:03:12]} 10. Qe1 {[%emt 0:04:58]} Rb8 {[%emt 0:05:00]} 11. f5 {[%emt 0:02:30]} e5 {[%emt 0:10:39]} 12. Ng5 {[%emt 0:05:28]} gxf5 {[%emt 0:06:09]} 13. exf5 {[%emt 0:12:16]} h6 {[%emt 0:07:35]} 14. Ne4 {[%emt 0:03:16]} Nf6 {[%emt 0:02:27]} 15. dxe5 {[%emt 0:02:51]} dxe5 {[%emt 0:00:26]} 16. N2g3 {[%emt 0:09:50]} Ned5 {[%emt 0:25:40]} 17. Nc5 {[%emt 0:09:53]} Qd6 {[%emt 0:01:11]} 18. Nge4 {[%emt 0:00:56]} Nxe4 {[%emt 0:00:49]} 19. Nxe4 {[%emt 0:00:07]} Qb6+ {[%emt 0:00:40]} 20. Kh1 {[%emt 0:00:15]} Nf6 {[%emt 0:07:22]} 21. Qg3 {[%emt 0:03:54]} Kf8 {[%emt 0:00:49]} 22. Be3 {[%emt 0:06:02]} Nxe4 {[%emt 0:03:49]} 23. Bxe4 {[%emt 0:00:39]} Qf6 {[%emt 0:03:46]} 24. Rad1 {[%emt 0:01:07]} Bb7 {[%emt 0:02:05]} 25. Bc5+ {[%emt 0:00:18]} Ke8 {[%emt 0:00:47]} 26. Qd3 {[%emt 0:00:33]} Bc6 {[%emt 0:02:03]} 27. Rfe1 {[%emt 0:08:42]} Bxa4 {[%emt 0:02:04]} 28. Bf3 {[%emt 0:01:20]} Bb5 {[%emt 0:01:49]} 29. Qd5 {[%emt 0:00:38]} Qxf5 {[%emt 0:01:23]} 30. Qc6+ {[%emt 0:00:21]} Qd7 {[%emt 0:02:17]} 31. Rxd7 {[%emt 0:00:19]} Bxc6 {[%emt 0:00:12]} 32. Bxc6 {[%emt 0:00:07]} 1-0

[Event "CZE-ch 2020"]
[Site "Pilsen"]
[Date "2020.08.27"]
[Round "5.26"]
[White "Jun, Rudolf"]
[Black "Toman, Ondrej"]
[Result "1-0"]
[ECO "B13"]
[WhiteElo "2094"]
[BlackElo "2233"]
[Annotator "ChessBase"]
[PlyCount "97"]
[EventDate "2020.08.23"]
[EventType "swiss"]
[EventCountry "CZE"]
[SourceTitle "playchess.com"]
[Source "ChessBase"]
[SourceQuality "1"]
[TimeControl "40/5400+30:1800+30"]

1. e4 {[%emt 0:00:00]} c6 {[%emt 0:00:00]} 2. d4 {[%emt 0:00:00]} d5 {[%emt 0:00:00]} 3. exd5 {[%emt 0:02:20]} cxd5 {[%emt 0:00:00]} 4. c4 {[%emt 0:00:22]} Nf6 {[%emt 0:00:00]} 5. Nc3 {[%emt 0:00:31]} Nc6 {[%emt 0:00:00]} 6. c5 {[%emt 0:01:43]} g6 {[%emt 0:07:26]} 7. Nf3 {[%emt 0:01:07]} Bg7 {[%emt 0:02:23]} 8. Bb5 {[%emt 0:01:49]} O-O {[%emt 0:01:25]} 9. O-O {[%emt 0:00:50]} Bg4 {[%emt 0:03:05]} 10. Bxc6 {[%emt 0:01:05]} bxc6 {[%emt 0:01:44]} 11. h3 {[%emt 0:00:06]} Bxf3 {[%emt 0:05:39]} 12. Qxf3 {[%emt 0:00:45]} Nd7 {[%emt 0:00:42]} 13. Ne2 {[%emt 0:00:27]} e5 {[%emt 0:02:31]} 14. Be3 {[%emt 0:00:14]} Rb8 {[%emt 0:06:36]} 15. Rab1 {[%emt 0:02:02]} Qa5 {[%emt 0:03:46]} 16. b4 {[%emt 0:11:22]} Qa6 {[%emt 0:09:37]} 17. Rfe1 {[%emt 0:04:27]} Rb7 {[%emt 0:05:33]} 18. Qg3 {[%emt 0:08:02]} Qxa2 {[%emt 0:10:20]} 19. b5 {[%emt 0:04:35]} Rxb5 {[%emt 0:03:51]} 20. Rxb5 {[%emt 0:00:13]} cxb5 {[%emt 0:00:04]} 21. c6 {[%emt 0:01:04]} Nb6 {[%emt 0:03:30]} 22. dxe5 {[%emt 0:00:23]} Nc4 {[%emt 0:01:41]} 23. Bd4 {[%emt 0:01:46]} Qa6 {[%emt 0:02:49]} 24. e6 {[%emt 0:01:51]} Qxc6 {[%emt 0:08:01]} 25. Bxg7 {[%emt 0:00:21]} Kxg7 {[%emt 0:00:02]} 26. Nd4 {[%emt 0:00:22]} Qc5 {[%emt 0:10:52]} 27. Nf5+ {[%emt 0:01:35]} Kg8 {[%emt 0:01:10]} 28. Nh6+ {[%emt 0:03:35]} Kg7 {[%emt 0:00:02]} 29. Nf5+ {[%emt 0:00:12]} Kg8 {[%emt 0:00:02]} 30. exf7+ {[%emt 0:06:58]} Kxf7 {[%emt 0:03:00]} 31. Qh4 {[%emt 0:00:36]} gxf5 {[%emt 0:02:16]} 32. Qxh7+ {[%emt 0:00:25]} Kf6 {[%emt 0:00:02]} 33. Qh6+ {[%emt 0:00:20]} Kf7 {[%emt 0:00:05]} 34. Re6 {[%emt 0:01:57]} Ne5 {[%emt 0:04:19]} 35. Qf6+ {[%emt 0:01:11]} Kg8 {[%emt 0:00:01]} 36. Qg5+ {[%emt 0:00:51]} Kf7 {[%emt 0:00:21]} 37. Qxf5+ {[%emt 0:00:36]} Kg8 {[%emt 0:00:17]} 38. Qg5+ {[%emt 0:00:15]} Kf7 {[%emt 0:00:21]} 39. Qxe5 {[%emt 0:00:27]} Qc1+ {[%emt 0:03:47]} 40. Kh2 {[%emt 0:00:07]} Qc7 {[%emt 0:01:27]} 41. Rf6+ {[%emt 0:31:12]} Kg7 {[%emt 0:30:02]} 42. Qxc7+ {[%emt 0:00:08]} Kxf6 {[%emt 0:00:08]} 43. Qd6+ {[%emt 0:00:05]} Kg7 {[%emt 0:00:12]} 44. Qxd5 {[%emt 0:00:24]} Kg6 {[%emt 0:00:32]} 45. Qxb5 {[%emt 0:00:27]} Rf5 {[%emt 0:00:21]} 46. Qa6+ {[%emt 0:00:10]} Kg5 {[%emt 0:00:43]} 47. Qxa7 {[%emt 0:00:09]} Kh4 {[%emt 0:00:24]} 48. g3+ {[%emt 0:00:37]} Kg5 {[%emt 0:00:05]} 49. Qg7+ 1-0

[Event "CZE-ch 2020"]
[Site "Pilsen"]
[Date "2020.08.27"]
[Round "5.27"]
[White "Malinovsky, Petr"]
[Black "Eret, Jonas"]
[Result "0-1"]
[ECO "A53"]
[WhiteElo "2081"]
[BlackElo "2219"]
[Annotator "ChessBase"]
[PlyCount "128"]
[EventDate "2020.08.23"]
[EventType "swiss"]
[EventCountry "CZE"]
[SourceTitle "playchess.com"]
[Source "ChessBase"]
[SourceQuality "1"]
[TimeControl "40/5400+30:1800+30"]

1. d4 {[%emt 0:00:00]} Nf6 {[%emt 0:00:00]} 2. c4 {[%emt 0:00:00]} d6 {[%emt 0:00:30]} 3. Nc3 {[%emt 0:00:00]} Nbd7 {[%emt 0:00:22]} 4. e4 {[%emt 0:00:12]} e5 {[%emt 0:00:19]} 5. d5 {[%emt 0:00:36]} c6 {[%emt 0:02:02]} 6. Be3 {[%emt 0:01:28]} Be7 {[%emt 0:00:47]} 7. f3 {[%emt 0:00:38]} O-O {[%emt 0:00:27]} 8. Qd2 {[%emt 0:00:35]} Qc7 {[%emt 0:01:57]} 9. Bd3 {[%emt 0:01:07]} Nc5 {[%emt 0:04:03]} 10. Bc2 {[%emt 0:00:46]} a5 {[%emt 0:00:59]} 11. Nge2 {[%emt 0:01:02]} Nfd7 {[%emt 0:02:31]} 12. Rd1 {[%emt 0:01:27]} Rd8 {[%emt 0:03:52]} 13. O-O {[%emt 0:00:27]} Nf8 {[%emt 0:05:02]} 14. f4 {[%emt 0:02:04]} exf4 {[%emt 0:01:08]} 15. Nxf4 {[%emt 0:07:46]} Nfd7 {[%emt 0:11:06]} 16. Nd3 {[%emt 0:20:05]} Nxd3 {[%emt 0:00:50]} 17. Bxd3 {[%emt 0:00:16]} Ne5 {[%emt 0:00:20]} 18. Qf2 {[%emt 0:05:55]} Rf8 {[%emt 0:07:15]} 19. Bb6 {[%emt 0:06:11]} Qb8 {[%emt 0:03:40]} 20. Bd4 {[%emt 0:01:39]} Bg4 {[%emt 0:06:31]} 21. Be2 {[%emt 0:01:09]} Bxe2 {[%emt 0:00:55]} 22. Qxe2 {[%emt 0:01:38]} Ng6 {[%emt 0:04:03]} 23. Rf3 {[%emt 0:04:21]} c5 {[%emt 0:02:30]} 24. Be3 {[%emt 0:03:00]} Qd8 {[%emt 0:02:19]} 25. Rdf1 {[%emt 0:05:24]} a4 {[%emt 0:01:38]} 26. Rh3 {[%emt 0:02:33]} Bg5 {[%emt 0:03:18]} 27. Rf5 {[%emt 0:02:30]} Bxe3+ {[%emt 0:01:08]} 28. Qxe3 {[%emt 0:01:04]} Re8 {[%emt 0:04:40]} 29. Qf3 {[%emt 0:02:15]} Qd7 {[%emt 0:08:59]} 30. Qh5 {[%emt 0:04:41]} h6 {[%emt 0:06:42]} 31. g4 {[%emt 0:06:56]} Re5 {[%emt 0:00:59]} 32. Rhf3 {[%emt 0:02:04]} Qe7 {[%emt 0:01:39]} 33. g5 {[%emt 0:04:39]} Rxf5 {[%emt 0:01:32]} 34. Rxf5 {[%emt 0:00:39]} Ne5 {[%emt 0:01:25]} 35. Qe2 {[%emt 0:04:58]} hxg5 {[%emt 0:00:54]} 36. Kh1 {[%emt 0:00:44]} g6 {[%emt 0:00:29]} 37. Rf2 {[%emt 0:00:31]} Kg7 {[%emt 0:01:03]} 38. Rg2 {[%emt 0:00:24]} g4 {[%emt 0:00:34]} 39. Nd1 {[%emt 0:01:02]} f5 {[%emt 0:03:35]} 40. exf5 {[%emt 0:01:01]} gxf5 {[%emt 0:00:12]} 41. Ne3 {[%emt 0:34:37]} Qg5 {[%emt 0:30:39]} 42. Qf2 {[%emt 0:00:00]} Rf8 {[%emt 0:00:00]} 43. Kg1 {[%emt 0:00:00]} Nd3 {[%emt 0:00:00]} 44. Qd2 {[%emt 0:00:00]} Nf4 {[%emt 0:00:00]} 45. Rg3 {[%emt 0:00:00]} Nh3+ {[%emt 0:00:00]} 46. Kh1 {[%emt 0:00:00]} Qf4 {[%emt 0:00:00]} 47. Qg2 {[%emt 0:00:00]} Kh7 {[%emt 0:00:00]} 48. Rxh3+ {[%emt 0:00:00]} gxh3 {[%emt 0:00:00]} 49. Qxh3+ {[%emt 0:00:00]} Qh6 {[%emt 0:00:00]} 50. Qf3 {[%emt 0:00:00]} Qg5 {[%emt 0:00:00]} 51. h3 {[%emt 0:00:00]} Qh4 {[%emt 0:00:00]} 52. Kh2 {[%emt 0:00:00]} Qf6 {[%emt 0:00:00]} 53. Qe2 {[%emt 0:00:21]} Qe5+ {[%emt 0:00:00]} 54. Kh1 {[%emt 0:00:23]} Qe4+ {[%emt 0:00:00]} 55. Kh2 {[%emt 0:00:11]} Qf4+ {[%emt 0:00:00]} 56. Kh1 {[%emt 0:00:05]} Qh4 {[%emt 0:00:00]} 57. Kh2 {[%emt 0:00:27]} Kh6 {[%emt 0:01:41]} 58. Ng2 {[%emt 0:00:44]} Qe4 {[%emt 0:00:17]} 59. Qf2 {[%emt 0:01:11]} f4 {[%emt 0:01:13]} 60. Qh4+ {[%emt 0:00:13]} Kg7 {[%emt 0:00:07]} 61. Qg4+ {[%emt 0:01:44]} Qg6 {[%emt 0:00:20]} 62. Qd1 {[%emt 0:02:15]} Qg3+ {[%emt 0:00:13]} 63. Kh1 {[%emt 0:00:43]} Qxh3+ {[%emt 0:00:15]} 64. Kg1 {[%emt 0:00:05]} f3 {[%emt 0:00:06]} 0-1